fUSD/lending_fUSD_20240606
["ID","MTS","AMOUNT","RATE_DAILY","PERIOD"]
[328668937,1717686651650,-500.0,0.00028493,4]
[328668938,1717686651660,-226.91568422,0.00028493,4]
[328668939,1717686651672,-425.73431578,0.00028493,4]
[328668940,1717686651682,-500.0,0.00028493,4]
[328668941,1717686651691,-500.0,0.00028493,4]
[328668942,1717686651701,-943.09,0.00028493,4]
[328668943,1717686651711,-1798.64,0.00028493,4]
[328668944,1717686651720,-584.12,0.00028493,4]
[328668945,1717686651731,-60.12698578,0.00028493,4]
[328668946,1717686651751,-2013.19301422,0.00028493,4]
[328668947,1717686651761,-500.0,0.00028493,4]
[328668948,1717686651771,-1369.53,0.00028493,4]
[328668949,1717686651781,-500.0,0.00028493,4]
[328668950,1717686651790,-500.0,0.00028493,4]
[328668951,1717686651800,-500.0,0.00028493,4]
[328668952,1717686651810,-299.69756624,0.00028493,4]
[328668953,1717686651822,-801.75243376,0.00028493,4]
[328668954,1717686651832,-1246.45,0.00028493,4]
[328668955,1717686651841,-551.64,0.00028493,4]
[328668956,1717686651851,-576.02,0.00028493,4]
[328668957,1717686651861,-143.98397685,0.00028493,4]
[328668958,1717686651875,-356.01602315,0.00028493,4]
[328668959,1717686651886,-897.91,0.00028493,4]
[328668960,1717686651896,-500.0,0.00028493,4]
[328668961,1717686651907,-1745.14,0.00028493,4]
[328668962,1717686651917,-1224.62,0.00028493,4]
[328668963,1717686651927,-500.0,0.00028493,4]
[328668964,1717686651936,-528.54,0.00028493,4]
[328668965,1717686651946,-500.0,0.00028493,4]
[328668966,1717686651956,-1556.05,0.00028493,4]
[328668967,1717686651966,-11.60434545,0.00028493,4]
[328668968,1717686674286,-657.54565455,0.00028493,4]
[328668969,1717686674296,-500.0,0.00028493,4]
[328668970,1717686674305,-2487.78,0.00028493,4]
[328668971,1717686674315,-500.0,0.00028493,4]
[328668972,1717686674324,-500.0,0.00028493,4]
[328668973,1717686674334,-1343.56,0.00028493,4]
[328668974,1717686674343,-500.0,0.00028493,4]
[328668975,1717686674353,-500.0,0.00028493,4]
[328668976,1717686674362,-500.0,0.00028493,4]
[328668977,1717686674371,-500.0,0.00028493,4]
[328668978,1717686674381,-500.0,0.00028493,4]
[328668979,1717686674390,-500.0,0.00028493,4]
[328668980,1717686674400,-500.0,0.00028493,4]
[328668981,1717686674409,-740.29,0.00028493,4]
[328668982,1717686674419,-500.0,0.00028493,4]
[328668983,1717686674430,-500.0,0.00028493,4]
[328668984,1717686674440,-500.0,0.00028493,4]
[328668985,1717686674449,-781.97,0.00028493,4]
[328668986,1717686674458,-500.0,0.00028493,4]
[328668987,1717686674467,-500.0,0.00028493,4]
[328668988,1717686674477,-1229.55,0.00028493,4]
[328668989,1717686674486,-500.0,0.00028493,4]
[328668990,1717686674495,-500.0,0.00028493,4]
[328668991,1717686674505,-500.0,0.00028493,4]
[328668992,1717686674514,-5063.26,0.00028493,4]
[328668993,1717686674524,-1206.05,0.00028493,4]
[328668994,1717686674539,-1584.5,0.00028493,4]
[328668995,1717686674548,-731.79,0.00028493,4]
[328668996,1717686674558,-500.0,0.00028493,4]
[328668997,1717686674568,-500.0,0.00028493,4]
[328668998,1717686674578,-1101.15,0.00028493,4]
[328668999,1717686674588,-537.05,0.00028493,4]
[328669000,1717686674597,-500.0,0.00028493,4]
[328669001,1717686674608,-674.4,0.00028493,4]
[328669002,1717686674617,-500.0,0.00028493,4]
[328669003,1717686674627,-1141.68,0.00028493,4]
[328669004,1717686674636,-500.0,0.00028493,4]
[328669005,1717686674646,-312.71181864,0.00028498,7]
[328669006,1717686674655,-3311.84501155,0.00028592,2]
[328669007,1717686674665,-619.56,0.00028767,4]
[328669008,1717686674675,-500.0,0.00028767,4]
[328669009,1717686674684,-250.0,0.00028767,4]
[328669010,1717686674693,-500.0,0.00028767,4]
[328669011,1717686674702,-500.0,0.00028767,4]
[328669012,1717686674712,-500.0,0.00028767,2]
[328669013,1717686674721,-500.0,0.00028767,4]
[328669014,1717686674731,-500.0,0.00028767,4]
[328669015,1717686674742,-531.76,0.00028767,4]
[328669016,1717686674752,-500.0,0.00028767,4]
[328669017,1717686674762,-500.0,0.00028767,2]
[328669018,1717686674773,-636.0,0.00028767,4]
[328669019,1717686674783,-500.0,0.00028767,4]
[328669020,1717686674793,-500.0,0.00028767,4]
[328669021,1717686674802,-500.0,0.00028767,4]
[328669022,1717686674811,-500.0,0.00028767,4]
[328669023,1717686674820,-500.0,0.00028767,4]
[328669024,1717686674829,-500.0,0.00028767,4]
[328669025,1717686674838,-500.0,0.00028767,4]
[328669026,1717686674847,-500.0,0.00028767,4]
[328669027,1717686674856,-500.0,0.00028767,4]
[328669028,1717686674866,-500.0,0.00028767,4]
[328669029,1717686674875,-233.92763017,0.00028767,4]
[328669030,1717686674884,-517.51,0.00028767,4]
[328669031,1717686674896,-500.0,0.00028767,4]
[328669032,1717686674907,-500.0,0.00028767,4]
[328669033,1717686674917,-500.0,0.00028767,4]
[328669034,1717686674927,-1016.7,0.00028767,4]
[328669035,1717686674936,-500.0,0.00028767,4]
[328669036,1717686674946,-500.0,0.00028767,4]
[328669037,1717686674955,-500.0,0.00028767,4]
[328669038,1717686674965,-500.0,0.00028767,4]
[328669039,1717686674975,-585.30405807,0.00028767,4]
[328669040,1717686674984,-500.0,0.00028767,4]
[328669041,1717686674995,-500.0,0.00028767,4]
[328669042,1717686675005,-500.0,0.00028767,4]
[328669043,1717686675015,-500.0,0.00028767,4]
[328669044,1717686675025,-500.0,0.00028767,4]
[328669045,1717686675035,-500.0,0.00028767,4]
[328669046,1717686675045,-500.0,0.00028767,4]
[328669047,1717686675055,-500.0,0.00028767,4]
[328669048,1717686675064,-500.0,0.00028767,4]
[328669049,1717686675074,-500.0,0.00028767,4]
[328669050,1717686675085,-500.0,0.00028767,4]
[328669051,1717686675094,-500.0,0.00028767,4]
[328669052,1717686675103,-500.0,0.00028767,4]
[328669053,1717686675112,-500.0,0.00028767,4]
[328669054,1717686675123,-500.0,0.00028767,4]
[328669055,1717686675132,-500.0,0.00028767,4]
[328669056,1717686675144,-500.0,0.00028767,4]
[328669057,1717686675153,-500.0,0.00028767,4]
[328669058,1717686675163,-500.0,0.00028767,4]
[328669059,1717686675172,-500.0,0.00028767,4]
[328669060,1717686675181,-500.0,0.00028767,4]
[328669061,1717686675190,-609.12161838,0.00028767,4]
[328669062,1717686675200,-150.0,0.00028767,4]
[328669063,1717686675210,-500.0,0.00028767,4]
[328669064,1717686675220,-500.0,0.00028767,4]
[328669065,1717686675230,-573.51,0.00028767,4]
[328669066,1717686675239,-502.72,0.00028767,4]
[328669067,1717686675249,-500.0,0.00028767,4]
[328669068,1717686675259,-500.0,0.00028767,4]
[328669069,1717686675269,-778.52,0.00028767,4]
[328669070,1717686675278,-500.0,0.00028767,4]
[328669071,1717686675287,-500.0,0.00028767,4]
[328669072,1717686675296,-565.04,0.00028767,4]
[328669073,1717686675306,-1965.25,0.00028767,4]
[328669074,1717686675316,-174.27154284,0.00028767,4]
[328669075,1717686675326,-500.0,0.00028767,4]
[328669076,1717686675335,-1598.65,0.00028767,4]
[328669077,1717686675344,-952.89,0.00028767,4]
[328669078,1717686675353,-500.0,0.00028767,4]
[328669079,1717686675363,-309.13248077,0.00028767,4]
[328669080,1717686675372,-886.3,0.00028767,4]
[328669081,1717686675382,-2073.66,0.00028767,4]
[328669082,1717686675442,-3741.02,0.00028767,4]
[328669083,1717686675452,-500.0,0.00028767,4]
[328669084,1717686675461,-964.49,0.00028767,4]
[328669085,1717686675471,-500.0,0.00028767,4]
[328669086,1717686675480,-500.0,0.00028767,4]
[328669087,1717686675490,-500.0,0.00028767,4]
[328669088,1717686675499,-500.0,0.00028767,4]
[328669089,1717686675509,-500.0,0.00028767,4]
[328669090,1717686675518,-500.0,0.00028767,4]
[328669091,1717686675528,-500.0,0.00028767,4]
[328669092,1717686675541,-1778.3,0.00028767,4]
[328669093,1717686675551,-500.0,0.00028767,4]
[328669094,1717686675561,-500.0,0.00028767,4]
[328669095,1717686675570,-500.0,0.00028767,4]
[328669096,1717686675582,-335.21,0.00028767,4]
[328669097,1717686675592,-500.0,0.00028767,4]
[328669098,1717686675601,-958.91,0.00028767,4]
[328669099,1717686675610,-500.0,0.00028767,4]
[328669100,1717686675622,-500.0,0.00028767,4]
[328669101,1717686675631,-500.0,0.00028767,4]
[328669102,1717686675642,-1603.64,0.00028767,4]
[328669103,1717686675653,-1509.84,0.00028767,4]
[328669104,1717686675663,-500.0,0.00028767,4]
[328669105,1717686675673,-500.0,0.00028767,4]
[328669106,1717686675685,-500.0,0.00028767,4]
[328669107,1717686675695,-1090.54,0.00028767,4]
[328669108,1717686675703,-500.0,0.00028767,4]
[328669109,1717686675715,-500.0,0.00028767,4]
[328669110,1717686675724,-622.28870634,0.00028767,4]
[328669111,1717686675734,-500.0,0.00028767,4]
[328669112,1717686675743,-500.0,0.00028767,4]
[328669113,1717686675752,-500.0,0.00028767,4]
[328669114,1717686675761,-500.0,0.00028767,4]
[328669115,1717686675770,-686.36,0.00028767,4]
[328669116,1717686675780,-500.0,0.00028767,4]
[328669117,1717686675789,-500.0,0.00028767,4]
[328669118,1717686675798,-1463.21,0.00028767,4]
[328669119,1717686675807,-723.48,0.00028767,4]
[328669120,1717686675816,-958.42,0.00028767,4]
[328669121,1717686675825,-500.0,0.00028767,4]
[328669122,1717686675834,-633.24,0.00028767,4]
[328669123,1717686675843,-608.51,0.00028767,4]
[328669124,1717686675853,-500.0,0.00028767,4]
[328669125,1717686675863,-500.0,0.00028767,4]
[328669126,1717686675873,-500.0,0.00028767,4]
[328669127,1717686675883,-500.0,0.00028767,4]
[328669128,1717686675894,-880.06,0.00028767,4]
[328669129,1717686675903,-500.0,0.00028767,4]
[328669130,1717686675913,-500.0,0.00028767,4]
[328669131,1717686675922,-171.50896888,0.00028767,4]
[328669132,1717686675932,-500.0,0.00028767,4]
[328669133,1717686675941,-225.32925602,0.00028767,4]
[328669134,1717686675952,-916.95,0.00028767,4]
[328669135,1717686675962,-500.0,0.00028767,4]
[328669136,1717686675971,-500.0,0.00028767,4]
[328669137,1717686675980,-500.0,0.00028767,4]
[328669138,1717686675990,-500.0,0.00028767,4]
[328669139,1717686675999,-500.0,0.00028767,4]
[328669140,1717686676008,-500.0,0.00028767,4]
[328669141,1717686676017,-2146.13,0.00028767,4]
[328669142,1717686676026,-500.0,0.00028767,4]
[328669143,1717686676038,-500.0,0.00028767,4]
[328669144,1717686676047,-4182.97,0.00028767,4]
[328669145,1717686676058,-2172.84,0.00028767,4]
[328669146,1717686676069,-878.93,0.00028767,4]
[328669147,1717686676079,-500.0,0.00028767,4]
[328669148,1717686676088,-500.0,0.00028767,4]
[328669149,1717686676097,-500.0,0.00028767,4]
[328669150,1717686676106,-652.65,0.00028767,4]
[328669151,1717686676118,-500.0,0.00028767,4]
[328669152,1717686676127,-500.0,0.00028767,4]
[328669153,1717686676136,-943.09,0.00028767,4]
[328669154,1717686676146,-1798.64,0.00028767,4]
[328669155,1717686676156,-584.12,0.00028767,4]
[328669156,1717686676165,-2073.32,0.00028767,4]
[328669157,1717686676175,-500.0,0.00028767,4]
[328669158,1717686676183,-1369.53,0.00028767,4]
[328669159,1717686676192,-500.0,0.00028767,4]
[328669160,1717686676201,-500.0,0.00028767,4]
[328669161,1717686676210,-500.0,0.00028767,4]
[328669162,1717686676219,-1101.45,0.00028767,4]
[328669163,1717686676228,-1246.45,0.00028767,4]
[328669164,1717686676237,-551.64,0.00028767,4]
[328669165,1717686676246,-576.02,0.00028767,4]
[328669166,1717686676255,-500.0,0.00028767,4]
[328669167,1717686676264,-897.91,0.00028767,4]
[328669168,1717686676273,-500.0,0.00028767,4]
[328669169,1717686676282,-1745.14,0.00028767,4]
[328669170,1717686676291,-1224.62,0.00028767,4]
[328669171,1717686676300,-500.0,0.00028767,4]
[328669172,1717686676310,-528.54,0.00028767,4]
[328669173,1717686676319,-500.0,0.00028767,4]
[328669174,1717686676329,-1556.05,0.00028767,4]
[328669175,1717686676339,-669.15,0.00028767,4]
[328669176,1717686676348,-500.0,0.00028767,4]
[328669177,1717686676358,-2487.78,0.00028767,4]
[328669178,1717686676368,-500.0,0.00028767,4]
[328669179,1717686676378,-500.0,0.00028767,4]
[328669180,1717686676387,-1343.56,0.00028767,4]
[328669181,1717686676396,-500.0,0.00028767,4]
[328669182,1717686676406,-500.0,0.00028767,4]
[328669183,1717686676415,-500.0,0.00028767,4]
[328669184,1717686676426,-500.0,0.00028767,4]
[328669185,1717686676436,-500.0,0.00028767,4]
[328669186,1717686676446,-500.0,0.00028767,4]
[328669187,1717686676456,-500.0,0.00028767,4]
[328669188,1717686676466,-740.29,0.00028767,4]
[328669189,1717686676475,-636.73308553,0.00028767,4]
[328669190,1717686676485,-500.0,0.00028767,4]
[328669191,1717686676495,-500.0,0.00028767,4]
[328669192,1717686676505,-781.97,0.00028767,4]
[328669193,1717686676514,-500.0,0.00028767,4]
[328669194,1717686676523,-500.0,0.00028767,4]
[328669195,1717686676533,-1229.55,0.00028767,4]
[328669196,1717686676548,-2000.0,0.00028767,21]
[328669197,1717686676557,-2000.0,0.00028767,21]
[328669198,1717686676567,-500.0,0.00028767,4]
[328669199,1717686676578,-2000.0,0.00028767,21]
[328669200,1717686676588,-2000.0,0.00028767,21]
[328669201,1717686676597,-2000.0,0.00028767,21]
[328669202,1717686676607,-2000.0,0.00028767,21]
[328669203,1717686676618,-500.0,0.00028767,4]
[328669204,1717686676628,-500.0,0.00028767,4]
[328669205,1717686676637,-5063.26,0.00028767,4]
[328669206,1717686676646,-1206.05,0.00028767,4]
[328669207,1717686676656,-1584.5,0.00028767,4]
[328669208,1717686676665,-731.79,0.00028767,4]
[328669209,1717686676675,-500.0,0.00028767,4]
[328669210,1717686676685,-500.0,0.00028767,4]
[328669211,1717686676694,-1101.15,0.00028767,4]
[328669212,1717686676704,-537.05,0.00028767,4]
[328669213,1717686676713,-500.0,0.00028767,4]
[328669214,1717686676722,-674.4,0.00028767,4]
[328669215,1717686676731,-500.0,0.00028767,4]
[328669216,1717686676741,-1141.68,0.00028767,4]
[328669217,1717686676750,-500.0,0.00028767,4]
[328669218,1717686676759,-3311.84501155,0.00028779,2]
[328669219,1717686676769,-301.0,0.0002879,5]
[328669220,1717686676778,-281.7,0.0002893,2]
[328669221,1717686676787,-3311.84501155,0.00028966,2]
[328669222,1717686676797,-4781.0,0.00028978,2]
[328669223,1717686676807,-155.0,0.00029,7]
[328669224,1717686676816,-4163.8478063,0.00029,2]
[328669225,1717686676825,-1120.93307,0.00029,2]
[328669226,1717686676835,-619.56,0.00029041,4]
[328669227,1717686676844,-500.0,0.00029041,4]
[328669228,1717686676854,-250.0,0.00029041,4]
[328669229,1717686676864,-500.0,0.00029041,4]
[328669230,1717686676873,-500.0,0.00029041,4]
[328669231,1717686676882,-500.0,0.00029041,2]
[328669232,1717686676891,-500.0,0.00029041,4]
[328669233,1717686676900,-500.0,0.00029041,4]
[328669234,1717686676909,-531.76,0.00029041,4]
[328669235,1717686676919,-500.0,0.00029041,4]
[328669236,1717686676930,-500.0,0.00029041,2]
[328669237,1717686676939,-636.0,0.00029041,4]
[328669238,1717686676949,-500.0,0.00029041,4]
[328669239,1717686676958,-500.0,0.00029041,4]
[328669240,1717686676968,-500.0,0.00029041,4]
[328669241,1717686676978,-500.0,0.00029041,4]
[328669242,1717686676987,-500.0,0.00029041,4]
[328669243,1717686676997,-500.0,0.00029041,4]
[328669244,1717686677006,-500.0,0.00029041,4]
[328669245,1717686677016,-500.0,0.00029041,4]
[328669246,1717686677026,-265.95924816,0.00029041,4]
[328669247,1717686677036,-500.0,0.00029041,4]
[328669248,1717686677046,-517.51,0.00029041,4]
[328669249,1717686677055,-500.0,0.00029041,4]
[328669250,1717686677065,-500.0,0.00029041,4]
[328669251,1717686677074,-500.0,0.00029041,4]
[328669252,1717686677084,-1016.7,0.00029041,4]
[328669253,1717686677094,-500.0,0.00029041,4]
[328669254,1717686677103,-576.41794528,0.00029041,4]
[328669255,1717686677113,-500.0,0.00029041,4]
[328669256,1717686677123,-500.0,0.00029041,4]
[328669257,1717686677133,-500.0,0.00029041,4]
[328669258,1717686677142,-500.0,0.00029041,4]
[328669259,1717686677152,-500.0,0.00029041,4]
[328669260,1717686677161,-500.0,0.00029041,4]
[328669261,1717686677171,-500.0,0.00029041,4]
[328669262,1717686677181,-500.0,0.00029041,4]
[328669263,1717686677191,-500.0,0.00029041,4]
[328669264,1717686677200,-500.0,0.00029041,4]
[328669265,1717686677210,-500.0,0.00029041,4]
[328669266,1717686677220,-500.0,0.00029041,4]
[328669267,1717686677229,-500.0,0.00029041,4]
[328669268,1717686677239,-500.0,0.00029041,4]
[328669269,1717686677249,-500.0,0.00029041,4]
[328669270,1717686677259,-500.0,0.00029041,4]
[328669271,1717686677268,-500.0,0.00029041,4]
[328669272,1717686677277,-500.0,0.00029041,4]
[328669273,1717686677288,-500.0,0.00029041,4]
[328669274,1717686677298,-500.0,0.00029041,4]
[328669275,1717686677307,-500.0,0.00029041,4]
[328669276,1717686677316,-500.0,0.00029041,4]
[328669277,1717686677327,-500.0,0.00029041,4]
[328669278,1717686677336,-150.0,0.00029041,4]
[328669279,1717686677346,-500.0,0.00029041,4]
[328669280,1717686677356,-500.0,0.00029041,4]
[328669281,1717686677365,-573.51,0.00029041,4]
[328669282,1717686677376,-502.72,0.00029041,4]
[328669283,1717686677386,-500.0,0.00029041,4]
[328669284,1717686677396,-500.0,0.00029041,4]
[328669285,1717686677406,-778.52,0.00029041,4]
[328669286,1717686677417,-419.59854606,0.00029041,4]
[328669287,1717686677427,-500.0,0.00029041,4]
[328669288,1717686677436,-565.04,0.00029041,4]
[328669289,1717686677446,-1965.25,0.00029041,4]
[328669290,1717686677456,-500.0,0.00029041,4]
[328669291,1717686677465,-1598.65,0.00029041,4]
[328669292,1717686677475,-952.89,0.00029041,4]
[328669293,1717686677484,-500.0,0.00029041,4]
[328669294,1717686677494,-886.3,0.00029041,4]
[328669295,1717686677504,-2073.66,0.00029041,4]
[328669296,1717686677514,-3741.02,0.00029041,4]
[328669297,1717686677524,-500.0,0.00029041,4]
[328669298,1717686677536,-964.49,0.00029041,4]
[328669299,1717686677546,-500.0,0.00029041,4]
[328669300,1717686677555,-500.0,0.00029041,4]
[328669301,1717686677565,-500.0,0.00029041,4]
[328669302,1717686677575,-500.0,0.00029041,4]
[328669303,1717686677587,-500.0,0.00029041,4]
[328669304,1717686677597,-500.0,0.00029041,4]
[328669305,1717686677607,-500.0,0.00029041,4]
[328669306,1717686677618,-1778.3,0.00029041,4]
[328669307,1717686677628,-500.0,0.00029041,4]
[328669308,1717686677638,-500.0,0.00029041,4]
[328669309,1717686677648,-500.0,0.00029041,4]
[328669310,1717686677657,-500.0,0.00029041,4]
[328669311,1717686677667,-958.91,0.00029041,4]
[328669312,1717686677678,-532.78895499,0.00029041,4]
[328669313,1717686677687,-500.0,0.00029041,4]
[328669314,1717686677696,-500.0,0.00029041,4]
[328669315,1717686677707,-1603.64,0.00029041,4]
[328669316,1717686677716,-1509.84,0.00029041,4]
[328669317,1717686677725,-500.0,0.00029041,4]
[328669318,1717686677734,-500.0,0.00029041,4]
[328669319,1717686677744,-500.0,0.00029041,4]
[328669320,1717686677753,-1090.54,0.00029041,4]
[328669321,1717686677763,-401.39797785,0.00029041,4]
[328669322,1717686677772,-500.0,0.00029041,4]
[328669323,1717686677782,-500.0,0.00029041,4]
[328669324,1717686677791,-500.0,0.00029041,4]
[328669325,1717686677801,-500.0,0.00029041,4]
[328669326,1717686677810,-500.0,0.00029041,4]
[328669327,1717686677819,-686.36,0.00029041,4]
[328669328,1717686677828,-500.0,0.00029041,4]
[328669329,1717686677838,-500.0,0.00029041,4]
[328669330,1717686677847,-1463.21,0.00029041,4]
[328669331,1717686677857,-723.48,0.00029041,4]
[328669332,1717686677866,-958.42,0.00029041,4]
[328669333,1717686677876,-500.0,0.00029041,4]
[328669334,1717686677886,-633.24,0.00029041,4]
[328669335,1717686677895,-608.51,0.00029041,4]
[328669336,1717686677904,-500.0,0.00029041,4]
[328669337,1717686677914,-500.0,0.00029041,4]
[328669338,1717686677924,-500.0,0.00029041,4]
[328669339,1717686677934,-440.18006221,0.00029041,4]
[328669340,1717686677943,-880.06,0.00029041,4]
[328669341,1717686677953,-500.0,0.00029041,4]
[328669342,1717686677963,-500.0,0.00029041,4]
[328669343,1717686677973,-500.0,0.00029041,4]
[328669344,1717686677982,-916.95,0.00029041,4]
[328669345,1717686677992,-500.0,0.00029041,4]
[328669346,1717686678002,-500.0,0.00029041,4]
[328669347,1717686678011,-500.0,0.00029041,4]
[328669348,1717686678021,-500.0,0.00029041,4]
[328669349,1717686678030,-500.0,0.00029041,4]
[328669350,1717686678039,-500.0,0.00029041,4]
[328669351,1717686678049,-2146.13,0.00029041,4]
[328669352,1717686678058,-500.0,0.00029041,4]
[328669353,1717686678068,-500.0,0.00029041,4]
[328669354,1717686678077,-4182.97,0.00029041,4]
[328669355,1717686678087,-2172.84,0.00029041,4]
[328669356,1717686678096,-878.93,0.00029041,4]
[328669357,1717686678106,-500.0,0.00029041,4]
[328669358,1717686678115,-500.0,0.00029041,4]
[328669359,1717686678124,-500.0,0.00029041,4]
[328669360,1717686678135,-652.65,0.00029041,4]
[328669361,1717686678144,-500.0,0.00029041,4]
[328669362,1717686678154,-500.0,0.00029041,4]
[328669363,1717686678164,-943.09,0.00029041,4]
[328669364,1717686678174,-1798.64,0.00029041,4]
[328669365,1717686678184,-584.12,0.00029041,4]
[328669366,1717686678193,-2073.32,0.00029041,4]
[328669367,1717686678203,-500.0,0.00029041,4]
[328669368,1717686678212,-1369.53,0.00029041,4]
[328669369,1717686678222,-500.0,0.00029041,4]
[328669370,1717686678231,-500.0,0.00029041,4]
[328669371,1717686678241,-500.0,0.00029041,4]
[328669372,1717686678250,-1101.45,0.00029041,4]
[328669373,1717686678260,-1246.45,0.00029041,4]
[328669374,1717686678270,-551.64,0.00029041,4]
[328669375,1717686678279,-576.02,0.00029041,4]
[328669376,1717686678289,-500.0,0.00029041,4]
[328669377,1717686678298,-897.91,0.00029041,4]
[328669378,1717686678308,-500.0,0.00029041,4]
[328669379,1717686678317,-1745.14,0.00029041,4]
[328669380,1717686678326,-1224.62,0.00029041,4]
[328669381,1717686678336,-500.0,0.00029041,4]
[328669382,1717686678345,-528.54,0.00029041,4]
[328669383,1717686678355,-500.0,0.00029041,4]
[328669384,1717686678364,-1556.05,0.00029041,4]
[328669385,1717686678374,-2487.78,0.00029041,4]
[328669386,1717686678383,-669.15,0.00029041,4]
[328669387,1717686678392,-500.0,0.00029041,4]
[328669388,1717686678402,-500.0,0.00029041,4]
[328669389,1717686678412,-500.0,0.00029041,4]
[328669390,1717686678422,-1343.56,0.00029041,4]
[328669391,1717686678433,-500.0,0.00029041,4]
[328669392,1717686678445,-500.0,0.00029041,4]
[328669393,1717686678455,-500.0,0.00029041,4]
[328669394,1717686678464,-500.0,0.00029041,4]
[328669395,1717686678474,-500.0,0.00029041,4]
[328669396,1717686678484,-500.0,0.00029041,4]
[328669397,1717686678494,-500.0,0.00029041,4]
[328669398,1717686678503,-740.29,0.00029041,4]
[328669399,1717686678513,-500.0,0.00029041,4]
[328669400,1717686678523,-500.0,0.00029041,4]
[328669401,1717686678533,-781.97,0.00029041,4]
[328669402,1717686678546,-500.0,0.00029041,4]
[328669403,1717686678555,-500.0,0.00029041,4]
[328669404,1717686678565,-1229.55,0.00029041,4]
[328669405,1717686678574,-500.0,0.00029041,4]
[328669406,1717686678585,-2000.0,0.00029041,21]
[328669407,1717686678595,-500.0,0.00029041,4]
[328669408,1717686678604,-500.0,0.00029041,4]
[328669409,1717686678617,-5063.26,0.00029041,4]
[328669410,1717686678627,-1206.05,0.00029041,4]
[328669411,1717686678637,-1584.5,0.00029041,4]
[328669412,1717686678646,-731.79,0.00029041,4]
[328669413,1717686678656,-500.0,0.00029041,4]
[328669414,1717686678666,-171.07907208,0.00029041,4]
[328669415,1717686678678,-1101.15,0.00029041,4]
[328669416,1717686678687,-537.05,0.00029041,4]
[328669417,1717686678696,-500.0,0.00029041,4]
[328669418,1717686678706,-674.4,0.00029041,4]
[328669419,1717686678715,-500.0,0.00029041,4]
[328669420,1717686678724,-1141.68,0.00029041,4]
[328669421,1717686678734,-500.0,0.00029041,4]
[328669422,1717686678743,-3311.84501155,0.00029153,2]
[328669423,1717686678754,-57273.19,0.00029232,6]
[328669424,1717686678763,-118763.84,0.00029232,6]
[328669425,1717686678773,-500.0,0.00029264,2]
[328669426,1717686678782,-200.0,0.00029264,2]
[328669427,1717686678792,-973.43,0.000293,2]
[328669428,1717686678802,-619.56,0.00029315,4]
[328669429,1717686678811,-500.0,0.00029315,4]
[328669430,1717686678820,-250.0,0.00029315,4]
[328669431,1717686678830,-500.0,0.00029315,4]
[328669432,1717686678840,-500.0,0.00029315,4]
[328669433,1717686678849,-153.68002459,0.00029315,2]
[328669434,1717686678859,-500.0,0.00029315,4]
[328669435,1717686678868,-500.0,0.00029315,4]
[328669436,1717686678878,-531.76,0.00029315,4]